bitfinex-derivatives/quotes_BTCF0:USTF0_20210109
["timestamp","ask_amount","ask_price","bid_price","bid_amount"]
[1610231541664,1.5,40378.0,40360.0,0.0298]
[1610231541864,1.53071168,40378.0,40360.0,0.0298]
[1610231542267,0.03071244,40377.0,40360.0,0.0298]
[1610231542465,0.13632608,40361.0,40360.0,0.0298]
[1610231542666,1.75320608,40361.0,40326.0,0.13632608]
[1610231542866,7.75320608,40361.0,40326.0,0.13632608]
[1610231543068,0.0003041,40360.0,40326.0,0.13632608]
[1610231543872,0.2980041,40360.0,40326.0,0.13632608]
[1610231544368,0.0003041,40359.0,40326.0,0.13632608]
[1610231544569,0.13632608,40331.0,40326.0,0.13632608]
[1610231544770,0.22989608,40331.0,40326.0,0.13632608]
[1610231545370,2.8882,40329.0,40326.0,0.13632608]
[1610231546670,2.8882,40329.0,40317.0,0.1556]
[1610231548472,0.13632608,40322.0,40320.0,0.13632608]
[1610231548670,0.24250608,40322.0,40320.0,0.13632608]
[1610231549073,0.0743,40321.0,40320.0,0.13632608]
[1610231549572,0.24250608,40322.0,40320.0,0.13632608]
[1610231550873,1.0736,40321.0,40320.0,0.13632608]
[1610231551774,1.0,40321.0,40320.0,0.13632608]
[1610231552875,0.24250608,40322.0,40320.0,0.13632608]
[1610231555077,0.0754,40321.0,40320.0,0.13632608]
[1610231556478,0.24250608,40322.0,40320.0,0.13632608]
[1610231559285,0.0753,40321.0,40320.0,0.13632608]
[1610231559484,0.24250608,40322.0,40320.0,0.13632608]
[1610231560387,0.075,40321.0,40305.0,3.0685]
[1610231560585,0.13632608,40313.0,40312.0,0.13632608]
[1610231560785,0.23582608,40313.0,40312.0,0.13632608]
[1610231562490,0.23582608,40313.0,40305.0,3.0685]
[1610231562691,0.23582608,40313.0,40306.0,0.13632608]
[1610231564092,0.23582608,40313.0,40296.0,3.0344]
[1610231564294,0.23582608,40313.0,40276.0,2.53153572]
[1610231564493,0.00030427,40312.0,40276.0,2.53153572]
[1610231564694,0.13632608,40301.0,40275.0,0.13632608]
[1610231564894,6.21342608,40301.0,40275.0,0.13632608]
[1610231565295,6.21342608,40301.0,40262.0,2.53147166]
[1610231565296,6.21373043,40301.0,40262.0,2.53147166]
[1610231565500,6.21373043,40301.0,40257.0,2.53173122]
[1610231565696,6.21373043,40301.0,40254.0,1.1556]
[1610231566095,6.24416938,40301.0,40254.0,1.1556]
[1610231566696,6.24416938,40301.0,40257.0,0.13632608]
[1610231566897,0.09164375,40300.0,40240.0,2.52860628]
[1610231567296,0.37004375,40300.0,40238.0,0.11925]
[1610231567696,0.03076029,40299.0,40238.0,0.11925]
[1610231568698,1.0,40261.0,40254.0,0.13632608]
[1610231568898,1.09899,40261.0,40254.0,0.13632608]
[1610231569297,0.0742,40260.0,40254.0,0.13632608]
[1610231569498,1.09899,40261.0,40254.0,0.13632608]
[1610231570099,1.0,40261.0,40254.0,0.13632608]
[1610231570605,1.0,40261.0,40260.0,0.13632608]
[1610231570804,0.13632608,40284.0,40260.0,0.13632608]
[1610231571004,0.00297301,40345.0,40260.0,0.13632608]
[1610231571202,0.35359733,40312.0,40260.0,0.13632608]
[1610231571403,0.00722017,40346.0,40260.0,0.13632608]
[1610231571404,0.03075292,40299.0,40260.0,0.13632608]
[1610231572003,0.03075033,40300.0,40260.0,0.13632608]
[1610231572204,0.03074803,40298.0,40260.0,0.13632608]
[1610231572404,0.03074772,40299.0,40260.0,0.13632608]
[1610231572608,0.03074772,40299.0,40250.0,0.09752]
[1610231572609,0.13632608,40276.0,40250.0,0.09752]
[1610231572807,0.13632608,40276.0,40238.0,2.78382126]
[1610231572808,0.22029608,40276.0,40238.0,0.11925]
[1610231573006,0.22029608,40276.0,40237.0,2.5172128]
[1610231573210,0.03075929,40275.0,40225.0,2.51766663]
[1610231573405,0.03075929,40275.0,40255.0,0.4487]
[1610231573607,0.03075929,40275.0,40215.0,2.51653532]
[1610231574007,0.03075929,40275.0,40195.0,2.51768758]
[1610231574407,0.2867,40274.0,40185.0,2.51850043]
[1610231574606,0.2867,40274.0,40205.0,0.13632608]
[1610231574808,3.6588,40256.0,40205.0,0.13632608]
[1610231575007,3.73218,40256.0,40197.0,3.08398]
[1610231575407,0.09177005,40255.0,40197.0,3.08398]
[1610231576208,0.09177005,40255.0,40197.0,2.9741]
[1610231578711,0.13632608,40201.0,40197.0,2.9741]
[1610231579314,0.13632608,40201.0,40143.0,2.49881484]
[1610231579511,0.13632608,40201.0,40132.0,2.49506083]
[1610231579711,0.16713921,40201.0,40132.0,2.49506083]
[1610231579912,0.32742023,40200.0,40119.0,2.49609668]
[1610231580312,0.32742023,40200.0,40116.0,2.49618205]
[1610231580512,0.03082173,40199.0,40116.0,2.49618205]
[1610231580711,0.13632608,40140.0,40129.0,0.13632608]
[1610231581113,0.07261,40186.0,40129.0,0.13632608]
[1610231581314,0.07261,40186.0,40129.0,0.25350608]
[1610231581513,1.0,40162.0,40139.0,1.0]
[1610231582715,1.0,40162.0,40161.0,0.13632608]
[1610231582914,1.0,40162.0,40161.0,0.21741608]
[1610231583517,0.00981666,40270.0,40161.0,0.21741608]
[1610231583718,0.0736,40212.0,40161.0,0.21741608]
[1610231583915,0.0736,40212.0,40162.0,0.1556]
[1610231584119,0.0736,40212.0,40166.0,0.45628111]
[1610231584316,0.0746,40203.0,40166.0,0.45628111]
[1610231584516,0.02460384,42136.0,40166.0,0.45628111]
[1610231584717,0.13632608,40230.0,40199.0,0.13632608]
[1610231585317,0.09148496,40297.0,40199.0,0.13632608]
[1610231585516,0.09435862,40299.0,40199.0,0.13632608]
[1610231585721,0.09147782,40300.0,40199.0,0.13632608]
[1610231585916,0.06098193,40300.0,40199.0,0.13632608]
[1610231586316,0.0028809,40302.0,40199.0,0.13632608]
[1610231586517,0.0739,40212.0,40199.0,0.13632608]
[1610231586718,0.13632608,40246.0,40199.0,0.13632608]
[1610231587619,1.0,40226.0,40199.0,1.13632608]
[1610231587820,1.1121,40226.0,40199.0,1.13632608]
[1610231588622,1.1121,40226.0,40225.0,0.13632608]
[1610231589923,1.1121,40226.0,40206.0,1.0]
[1610231590322,0.0748,40225.0,40206.0,1.0]
[1610231590723,0.0748,40225.0,40214.0,0.13632608]
[1610231590922,1.1121,40226.0,40214.0,0.13632608]
[1610231591522,1.0,40221.0,40214.0,0.13632608]
[1610231592722,1.0,40221.0,40220.0,0.13632608]
[1610231593523,0.0754,40227.0,40220.0,1.25573608]
[1610231593923,0.15236888,40252.0,40220.0,1.25573608]
[1610231594223,1.0,40258.0,40220.0,1.25573608]
[1610231594624,0.07338,40256.0,40252.0,0.13632608]
[1610231596523,2.9301,40253.0,40252.0,0.13632608]
[1610231597525,2.9301,40253.0,40252.0,1.13632608]
[1610231598325,2.9301,40253.0,40252.0,1.0]
[1610231598726,3.06642608,40253.0,40252.0,1.0]
[1610231599126,3.24956028,40253.0,40252.0,1.0]
[1610231599328,3.24956028,40253.0,40252.0,0.84763683]
[1610231599528,4.24956028,40253.0,40216.0,1.0]
[1610231600026,0.18315918,40252.0,40216.0,1.0]
[1610231600627,0.13632608,40247.0,40229.0,0.13632608]
[1610231600826,0.21280608,40247.0,40229.0,0.13632608]
[1610231601629,1.0,40230.0,40229.0,0.13632608]
[1610231601829,1.16483,40230.0,40229.0,0.13632608]
[1610231603631,1.16483,40230.0,40194.0,1.0]
[1610231604632,0.13632608,40223.0,40214.0,4.1351]
[1610231604831,0.074,40222.0,40214.0,4.1351]
[1610231606636,0.13632608,40216.0,40214.0,4.1351]
[1610231606834,0.24081608,40216.0,40214.0,4.1351]
[1610231607735,0.0756,40215.0,40214.0,4.1351]
[1610231608535,0.24081608,40216.0,40214.0,4.1351]
[1610231610438,0.0748,40215.0,40214.0,4.1351]
[1610231611239,1.0,40217.0,40212.0,0.13632608]
[1610231611638,0.03,40222.0,40212.0,0.13632608]
[1610231612440,0.03,40222.0,40196.0,0.08372]
[1610231612840,0.13632608,40211.0,40210.0,0.13632608]
[1610231613042,0.24814608,40211.0,40210.0,0.13632608]
[1610231613440,0.24814608,40211.0,40191.0,4.1499]
[1610231613643,1.24814608,40211.0,40191.0,4.1499]
[1610231613841,0.0737,40210.0,40191.0,4.1499]
[1610231614643,1.24814608,40211.0,40191.0,4.1499]
[1610231614841,1.11182,40211.0,40203.0,0.13632608]
[1610231615541,0.11182,40211.0,40203.0,0.13632608]
[1610231616140,0.0749,40210.0,40203.0,0.13632608]
[1610231616743,0.13632608,40204.0,40203.0,0.13632608]
[1610231628158,0.13632608,40204.0,40203.0,0.11632608]
[1610231629659,0.13632608,40204.0,40186.0,2.54097353]
[1610231629862,0.13632608,40204.0,40203.0,0.00021329]
[1610231630062,0.13632608,40204.0,40187.0,2.54247045]
[1610231630260,0.13632608,40204.0,40188.0,2.5424673]
[1610231630461,0.13632608,40204.0,40189.0,2.54414198]
[1610231630660,0.13632608,40204.0,40189.0,2.54435527]
[1610231630860,0.13632608,40204.0,40203.0,0.13632608]
[1610231631462,0.13632608,40204.0,40203.0,0.13653937]
[1610231632363,0.13632608,40204.0,40203.0,0.00021329]
[1610231632764,0.13632608,40204.0,40202.0,0.13632608]
[1610231632965,0.13632608,40204.0,40190.0,2.55069385]
[1610231633164,0.13632608,40204.0,40203.0,0.00021332]
[1610231633566,0.13632608,40204.0,40191.0,2.55232699]
[1610231633765,0.13632608,40204.0,40192.0,0.00021332]
[1610231634765,0.13632608,40204.0,40203.0,0.13632608]
[1610231635166,0.13632608,40204.0,40203.0,0.1365394]
[1610231636367,0.13632608,40204.0,40203.0,0.00021332]
[1610231636766,0.13632608,40204.0,40198.0,0.13632608]
[1610231637168,0.13632608,40204.0,40199.0,0.00021332]
[1610231641072,0.16632608,40204.0,40199.0,0.00021332]
[1610231641572,0.16632608,40204.0,40199.0,0.00783807]
[1610231644976,0.16632608,40204.0,40203.0,0.13632608]
[1610231645377,0.16632608,40204.0,40203.0,0.13652608]
[1610231645576,0.16632608,40204.0,40203.0,0.14415081]
[1610231646178,0.16632608,40204.0,40203.0,0.00782473]
[1610231646577,0.16632608,40204.0,40203.0,0.0002]
[1610231646979,0.16632608,40204.0,40194.0,0.00782493]
[1610231647180,0.16632608,40204.0,40203.0,0.00762493]
[1610231647380,0.16632608,40204.0,40191.0,2.56052402]
[1610231647581,0.16632608,40204.0,40203.0,0.0002]
[1610231647582,1.16632608,40204.0,40203.0,0.0002]
[1610231647884,1.16632608,40204.0,40192.0,0.00782567]
[1610231648081,1.16632608,40204.0,40203.0,0.0002]
[1610231648483,1.16632608,40204.0,40193.0,0.00782575]
[1610231648685,1.16632608,40204.0,40203.0,0.0002]
[1610231648884,1.16632608,40204.0,40197.0,0.13632608]
[1610231649283,1.16632608,40204.0,40198.0,0.0002]
[1610231649683,0.16632608,40204.0,40186.0,0.00782627]
[1610231650987,0.13632608,40188.0,40187.0,0.13632608]
[1610231651387,0.13632608,40188.0,40187.0,0.14415267]
[1610231654890,0.13632608,40188.0,40187.0,0.13652608]
[1610231655692,1.13632608,40188.0,40187.0,0.13652608]
[1610231656492,1.13632608,40188.0,40187.0,0.0002]
[1610231656892,1.13632608,40188.0,40186.0,0.0002]
[1610231657091,1.13632608,40188.0,40187.0,0.0002]
[1610231657492,1.13632608,40188.0,40179.0,0.0002]
[1610231657693,0.13632608,40188.0,40187.0,0.0002]
[1610231657893,0.13632608,40188.0,40180.0,0.0002]
[1610231658294,0.13632608,40188.0,40175.0,0.0078284]
[1610231658494,0.13632608,40188.0,40181.0,0.0002]
[1610231658693,0.13632608,40188.0,40176.0,0.0002]
[1610231659094,0.13632608,40177.0,40175.0,0.0002]
[1610231659294,0.13632608,40177.0,40174.0,0.00762862]
[1610231659494,0.13632608,40177.0,40176.0,0.0002]
[1610231659895,0.13632608,40177.0,40172.0,2.57276304]
[1610231660095,0.13632608,40177.0,40176.0,0.0002]
[1610231660295,0.13632608,40177.0,40173.0,0.0002]
[1610231661096,0.13632608,40177.0,40174.0,0.13632608]
[1610231661496,0.03,40176.0,40175.0,0.0002]
[1610231663898,0.03,40176.0,40170.0,0.0002]
[1610231664098,0.03,40176.0,40175.0,0.0002]
[1610231664299,0.03,40176.0,40171.0,0.0002]
[1610231664698,0.03,40176.0,40168.0,0.0002]
[1610231664898,0.03,40176.0,40172.0,0.0002]
[1610231665100,0.03,40176.0,40166.0,2.56493184]
[1610231665101,0.03,40176.0,40169.0,0.0002]
[1610231665399,0.03,40176.0,40173.0,0.0002]
[1610231665600,0.03,40176.0,40170.0,0.0002]
[1610231666000,0.03,40176.0,40165.0,0.0002]
[1610231666200,0.03,40176.0,40171.0,0.0002]
[1610231666400,0.03,40176.0,40166.0,0.0002]
[1610231666701,0.03,40176.0,40165.0,0.0002]
[1610231667100,0.03,40176.0,40167.0,0.0002]
[1610231667299,0.03,40176.0,40166.0,0.0002]
[1610231667501,0.03,40176.0,40168.0,0.0002]
[1610231667700,3.8498,40169.0,40168.0,0.0002]
[1610231667900,3.8498,40169.0,40167.0,0.0002]
[1610231668099,3.8498,40169.0,40168.0,0.0002]
[1610231668699,3.8498,40169.0,40161.0,0.0002]
[1610231668900,3.8498,40169.0,40168.0,0.0002]
[1610231669101,3.98612608,40169.0,40162.0,0.0002]
[1610231669301,3.98612608,40169.0,40168.0,0.0002]
[1610231669701,3.98612608,40169.0,40158.0,0.0002]
[1610231669901,3.98612608,40169.0,40168.0,0.0002]
[1610231670102,3.98612608,40169.0,40159.0,0.0002]
[1610231670402,3.98612608,40169.0,40158.0,0.0002]
[1610231670803,3.98612608,40169.0,40160.0,0.0002]
[1610231671006,3.98612608,40169.0,40159.0,0.0002]
[1610231671203,0.13632608,40162.0,40161.0,0.0002]
[1610231671605,0.13632608,40162.0,40158.0,0.0002]
[1610231671805,0.13632608,40162.0,40161.0,0.0002]
[1610231672004,0.13632608,40162.0,40159.0,0.0002]
[1610231672304,0.13632608,40162.0,40161.0,0.0002]
[1610231672504,0.13632608,40162.0,40160.0,0.0002]
[1610231672903,0.13632608,40162.0,40158.0,0.0002]
[1610231673104,0.13632608,40162.0,40161.0,0.0002]
[1610231673303,0.13632608,40162.0,40159.0,0.0002]
[1610231673706,0.13632608,40162.0,40158.0,0.0002]
[1610231673905,0.13632608,40162.0,40160.0,0.0002]
[1610231674205,0.13632608,40162.0,40159.0,0.0002]
[1610231674404,0.13632608,40162.0,40161.0,0.0002]
[1610231674805,3.8498,40169.0,40160.0,0.0002]
[1610231675005,3.8498,40169.0,40161.0,0.0002]
[1610231675206,3.8498,40169.0,40168.0,0.13632608]
[1610231676607,3.8498,40169.0,40168.0,0.13652608]
[1610231677007,0.11137,40170.0,40168.0,0.13652608]
[1610231677407,0.16632608,40176.0,40169.0,0.0002]
[1610231678608,0.16632608,40176.0,40164.0,0.0002]
[1610231679208,0.13632608,40169.0,40164.0,0.0002]
[1610231679409,0.21000608,40169.0,40164.0,0.0002]
[1610231679908,0.21000608,40169.0,40157.0,0.0002]
[1610231681008,0.21000608,40169.0,40153.0,0.0002]
[1610231681208,0.13632608,40154.0,40153.0,0.0002]
[1610231681710,0.07368,40169.0,40153.0,0.0002]
[1610231682111,0.07368,40169.0,40151.0,0.0002]
[1610231682310,0.07368,40169.0,40154.0,0.0002]
[1610231682711,0.07368,40169.0,40150.0,0.0002]
[1610231682912,0.07368,40169.0,40155.0,0.0002]
[1610231683113,0.07368,40169.0,40151.0,0.0002]
[1610231683313,0.13632608,40161.0,40156.0,0.13632608]
[1610231683715,1.13632608,40161.0,40157.0,0.0002]
[1610231685616,0.13632608,40161.0,40157.0,0.0002]
[1610231686418,3.54262608,40161.0,40157.0,0.0002]
[1610231688821,3.54262608,40161.0,40150.0,0.00782981]
[1610231689021,3.54262608,40161.0,40158.0,0.0002]
[1610231689421,3.54262608,40161.0,40151.0,0.0002]
[1610231689621,3.54262608,40161.0,40159.0,0.0002]
[1610231689822,3.54262608,40161.0,40152.0,0.0002]
[1610231690020,3.54262608,40161.0,40160.0,0.0002]
[1610231690422,3.54262608,40161.0,40150.0,0.0002]
[1610231690621,3.54262608,40161.0,40160.0,0.0002]
[1610231691022,3.54262608,40161.0,40151.0,0.0002]
[1610231691222,3.4063,40161.0,40160.0,0.0002]
[1610231691423,3.4063,40161.0,40152.0,0.0002]
[1610231691622,4.4063,40161.0,40160.0,0.08538]
[1610231692425,5.9063,40161.0,40160.0,0.08538]
[1610231693226,6.04262608,40161.0,40160.0,0.08538]
[1610231693627,5.04262608,40161.0,40160.0,0.08538]
[1610231694229,3.54262608,40161.0,40160.0,0.08518]
[1610231694431,5.04262608,40161.0,40160.0,0.08538]
[1610231694628,4.73292608,40161.0,40160.0,0.08538]
[1610231695029,4.73292608,40161.0,40149.0,0.07531]
[1610231695229,0.13632608,40150.0,40140.0,0.07628]
[1610231695429,1.5,40149.0,40125.0,0.13632608]
[1610231695829,0.5789,40128.0,40126.0,0.00783389]
[1610231696628,0.5789,40128.0,40116.0,0.00783474]
[1610231696829,0.5789,40128.0,40127.0,0.00783658]
[1610231697030,0.5789,40128.0,40127.0,0.08914658]
[1610231697229,1.71522608,40128.0,40127.0,0.08131]
[1610231697428,1.71522608,40128.0,40127.0,0.08914662]
[1610231697629,1.5789,40128.0,40127.0,0.08914662]
[1610231698930,1.6532,40128.0,40127.0,0.08914662]
[1610231699130,1.5789,40128.0,40127.0,0.08914662]
[1610231699332,0.5789,40128.0,40127.0,0.2254727]
[1610231700332,0.6537,40128.0,40127.0,0.2254727]
[1610231700534,0.6537,40128.0,40127.0,0.2252727]
[1610231700734,0.5789,40128.0,40127.0,0.21783608]
[1610231701135,0.5789,40128.0,40127.0,0.08151]
[1610231701336,1.5789,40128.0,40127.0,0.08151]
[1610231703341,0.5789,40128.0,40127.0,0.08151]
[1610231705146,0.13632608,40131.0,40127.0,0.08151]
[1610231705542,0.13632608,40131.0,40128.0,0.0002]
[1610231707347,0.13632608,40131.0,40129.0,0.13632608]
[1610231707847,0.13632608,40131.0,40130.0,0.0002]
[1610231709550,0.13632608,40131.0,40129.0,0.13632608]
[1610231709750,0.13632608,40131.0,40127.0,0.08131]
[1610231709951,0.13632608,40131.0,40110.0,2.54884288]
[1610231710350,0.13632608,40131.0,40111.0,0.0002]
[1610231710550,0.13632608,40131.0,40111.0,0.09421]
[1610231711150,0.13632608,40131.0,40112.0,0.0002]
[1610231711351,0.13632608,40131.0,40126.0,0.13632608]
[1610231712950,0.13632608,40131.0,40127.0,0.0002]
[1610231714654,0.13632608,40131.0,40126.0,0.13632608]
[1610231721261,1.13632608,40131.0,40126.0,0.13632608]
[1610231721461,1.13632608,40131.0,40127.0,0.0002]
[1610231723264,0.13632608,40131.0,40127.0,0.0002]
[1610231728369,0.21665608,40131.0,40127.0,0.0002]
[1610231730671,0.21665608,40131.0,40127.0,0.00783634]
[1610231731072,0.21665608,40131.0,40127.0,0.0002]
[1610231731271,0.21665608,40131.0,40126.0,0.13632608]
[1610231731272,0.21665608,40131.0,40128.0,0.0002]
[1610231731872,0.21665608,40131.0,40127.0,0.00783603]
[1610231732072,0.21665608,40131.0,40129.0,0.0002]
[1610231732271,0.21665608,40131.0,40128.0,0.0002]
[1610231732672,0.21665608,40131.0,40127.0,0.00783618]
[1610231732873,0.21665608,40131.0,40129.0,0.0002]
[1610231733072,0.21665608,40131.0,40128.0,0.0002]
[1610231733474,0.21665608,40131.0,40127.0,0.00783618]
[1610231733676,0.21665608,40131.0,40129.0,0.0002]
[1610231733875,0.21665608,40131.0,40128.0,0.0002]
[1610231734174,0.21665608,40131.0,40127.0,0.00783618]
[1610231734575,0.21665608,40131.0,40129.0,0.0002]
[1610231734776,0.21665608,40131.0,40128.0,0.0002]
[1610231734977,0.21665608,40131.0,40130.0,0.0002]
[1610231735378,0.21665608,40131.0,40129.0,0.0002]
[1610231735577,0.21665608,40131.0,40130.0,0.0002]
[1610231736178,0.08033,40131.0,40122.0,0.00783659]
[1610231736378,0.11493,40131.0,40130.0,0.0002]
[1610231736577,0.11493,40131.0,40123.0,0.0002]
[1610231736978,0.11493,40131.0,40130.0,0.0002]
[1610231737177,0.11493,40131.0,40124.0,0.0002]
[1610231737377,0.11493,40131.0,40130.0,0.0002]
[1610231737577,0.11493,40131.0,40130.0,0.13652608]
[1610231737778,0.11493,40131.0,40130.0,0.13632608]
[1610231737981,0.11493,40131.0,40130.0,0.13652608]
[1610231738578,0.11493,40131.0,40130.0,0.0002]
[1610231738977,0.11493,40131.0,40115.0,2.58932411]
[1610231739178,0.11493,40131.0,40130.0,0.0002]
[1610231739579,0.11493,40131.0,40130.0,0.13632608]
[1610231739778,0.11493,40131.0,40130.0,0.13652608]
[1610231741481,0.08529,40140.0,40130.0,0.13652608]
[1610231741682,0.13632608,40139.0,40135.0,0.13632608]
[1610231742281,0.074,40138.0,40136.0,0.0002]
[1610231742481,0.13632608,40139.0,40136.0,0.0002]
[1610231747186,0.0745,40138.0,40136.0,0.0002]
[1610231747588,0.13632608,40139.0,40136.0,0.0002]
[1610231749988,0.0739,40138.0,40134.0,0.0002]
[1610231750187,0.0739,40138.0,40137.0,0.0002]
[1610231750388,0.0739,40138.0,40135.0,0.0002]
[1610231750588,0.13632608,40139.0,40135.0,0.0002]
[1610231750790,0.13632608,40139.0,40134.0,0.0002]
[1610231750990,0.13632608,40139.0,40136.0,0.0002]
[1610231751188,0.13632608,40139.0,40135.0,0.0002]
[1610231751589,0.0739,40138.0,40134.0,0.0002]
[1610231751790,0.13632608,40139.0,40136.0,0.0002]
[1610231751989,0.13632608,40139.0,40135.0,0.0002]
[1610231752390,0.13632608,40139.0,40129.0,0.00783609]
[1610231752692,0.13632608,40139.0,40136.0,0.0002]
[1610231752891,0.13632608,40139.0,40130.0,0.0002]
[1610231753090,0.13632608,40139.0,40137.0,0.0002]
[1610231753292,0.13632608,40139.0,40131.0,0.0002]
[1610231753694,0.13632608,40132.0,40130.0,0.00783624]
[1610231753893,0.13632608,40132.0,40130.0,0.00763624]
[1610231754093,0.13632608,40132.0,40131.0,0.0002]
[1610231754396,0.13632608,40132.0,40131.0,2.58409112]
[1610231754795,0.13632608,40132.0,40131.0,2.58429112]
[1610231755195,0.13632608,40132.0,40131.0,0.0002]
[1610231755796,0.13632608,40132.0,40130.0,0.0002]
[1610231755998,0.13632608,40132.0,40131.0,0.0002]
[1610231756496,0.13632608,40132.0,40130.0,0.0002]
[1610231757699,0.13632608,40132.0,40131.0,0.13632608]
[1610231758098,0.13632608,40132.0,40131.0,0.13652608]
[1610231759000,0.13632608,40132.0,40131.0,0.13632608]
[1610231759799,1.0,40136.0,40131.0,0.13632608]
[1610231760501,1.0,40136.0,40132.0,0.0002]
[1610231760702,1.0,40136.0,40132.0,0.00783676]
[1610231760900,1.0,40136.0,40132.0,0.0002]
[1610231761103,1.0,40136.0,40133.0,0.0002]
[1610231761301,0.08529,40140.0,40133.0,0.0002]
[1610231761502,1.0,40145.0,40132.0,0.0002]
[1610231761702,0.13632608,40141.0,40136.0,0.13632608]
[1610231762201,0.13632608,40141.0,40137.0,0.0002]
[1610231764505,0.13632608,40141.0,40137.0,0.00783614]
[1610231765207,0.13632608,40141.0,40137.0,0.0002]
[1610231765409,0.13632608,40141.0,40136.0,2.72078105]
[1610231765410,0.13632608,40141.0,40138.0,0.0002]
[1610231766007,0.13632608,40141.0,40137.0,0.0002]
[1610231766208,0.13632608,40141.0,40139.0,0.0002]
[1610231766408,0.13632608,40141.0,40138.0,0.0002]
[1610231766809,0.13632608,40141.0,40140.0,0.0002]
[1610231767008,0.13632608,40141.0,40139.0,0.0002]
[1610231767210,0.13632608,40141.0,40140.0,0.0002]
[1610231767812,0.13632608,40141.0,40137.0,0.00783543]
[1610231768013,0.13632608,40141.0,40140.0,0.0002]
[1610231768213,1.5,40189.0,40140.0,0.0002]
[1610231768413,0.2808,40158.0,40138.0,0.0002]
[1610231768611,0.2808,40158.0,40141.0,0.0002]
[1610231768813,0.2808,40158.0,40139.0,0.0002]
[1610231769011,0.2808,40158.0,40142.0,0.0002]
[1610231769413,0.2808,40158.0,40137.0,0.00783543]
[1610231769612,0.2808,40158.0,40143.0,0.0002]
[1610231769812,0.13632608,40148.0,40143.0,0.13632608]
[1610231770012,0.24554608,40148.0,40143.0,0.13632608]
[1610231770212,0.24554608,40148.0,40144.0,0.0002]
[1610231770614,0.10922,40148.0,40144.0,0.0002]
[1610231771212,0.10922,40148.0,40144.0,0.00783425]
[1610231771416,0.10922,40148.0,40147.0,1.0]
[1610231771814,0.10922,40148.0,40147.0,1.00783304]
[1610231772517,0.13632608,40181.0,40147.0,1.00783304]
[1610231773118,0.13632608,40181.0,40157.0,2.57817415]
[1610231773516,0.2735,40203.0,40158.0,0.0002]
[1610231773715,0.13632608,40187.0,40175.0,0.13632608]
[1610231774117,0.13632608,40187.0,40175.0,0.13652608]
[1610231774918,0.13632608,40187.0,40175.0,0.13632608]
[1610231775319,0.13632608,40187.0,40175.0,1.13632608]
[1610231776920,1.0,40197.0,40175.0,1.13632608]
[1610231777321,1.0,40196.0,40175.0,0.13632608]
[1610231777720,1.13632608,40196.0,40175.0,0.13632608]
[1610231777923,1.0,40196.0,40175.0,0.13632608]
[1610231780322,1.0,40196.0,40175.0,2.68159608]
[1610231780523,0.1363,40176.0,40175.0,2.68159608]
[1610231781726,0.1363,40176.0,40175.0,2.81792216]
[1610231783328,0.1363,40176.0,40175.0,3.81792216]
[1610231783930,0.03,40204.0,40175.0,3.81792216]
[1610231785331,0.03,40204.0,40175.0,2.81792216]
[1610231785832,0.03,40204.0,40203.0,0.13632608]
[1610231786836,0.03,40204.0,40175.0,2.68159608]
[1610231787837,0.13632608,40200.0,40198.0,0.13632608]
[1610231788239,0.21409608,40200.0,40198.0,0.13632608]
[1610231789839,0.21409608,40200.0,40198.0,4.07572608]
[1610231790438,0.21409608,40200.0,40198.0,3.9394]
[1610231791839,0.21409608,40200.0,40199.0,0.13632608]
[1610231792639,0.07777,40200.0,40199.0,0.13632608]
[1610231793242,0.03,40204.0,40199.0,0.13632608]
[1610231813471,0.03,40204.0,40203.0,0.03]
[1610231821378,0.03,40204.0,40203.0,0.0302]
[1610231826384,0.12415,40204.0,40203.0,0.0302]
[1610231834302,0.12415,40204.0,40203.0,0.03782631]
[1610231837704,0.12415,40204.0,40203.0,0.0302]
[1610231839105,0.12415,40204.0,40203.0,0.03782557]
[1610231840305,0.12415,40204.0,40203.0,0.0302]
[1610231840706,0.12415,40204.0,40203.0,0.03782568]
[1610231840907,0.12415,40204.0,40203.0,0.0302]
[1610231845515,0.12415,40204.0,40203.0,0.03782548]
[1610231861334,0.12415,40204.0,40203.0,1.03782548]
[1610231861735,0.12415,40204.0,40203.0,3.61714029]
[1610231862336,0.12415,40204.0,40203.0,1.03782548]
[1610231862938,0.12415,40204.0,40203.0,3.61711961]
[1610231865040,0.12415,40204.0,40203.0,1.03782548]
[1610231873349,0.12415,40204.0,40203.0,0.03782548]
[1610231874349,0.12415,40204.0,40203.0,4.10142548]
[1610231877354,0.12415,40204.0,40203.0,5.10142548]
[1610231879757,0.12415,40204.0,40203.0,7.83055483]
[1610231879956,0.12415,40204.0,40203.0,7.84911928]
[1610231880856,0.12415,40204.0,40203.0,5.11998993]
[1610231881659,0.12415,40204.0,40203.0,7.84847784]
[1610231884964,0.08279,40204.0,40203.0,7.84847784]
[1610231885764,0.08279,40204.0,40203.0,5.11998993]
[1610231887467,0.08279,40204.0,40203.0,5.10142548]
[1610231887970,1.13632608,40227.0,40203.0,5.10142548]
[1610231888369,1.13632608,40227.0,40204.0,0.00782361]
[1610231888570,1.13632608,40227.0,40210.0,2.5754389]
[1610231888768,1.13632608,40227.0,40226.0,0.13632608]
[1610231889168,1.13632608,40227.0,40226.0,0.13652608]
[1610231889370,1.13632608,40227.0,40210.0,2.5754389]
[1610231889969,1.13632608,40227.0,40211.0,0.00782368]
[1610231890670,1.13632608,40227.0,40226.0,0.13632608]
[1610231891069,1.13632608,40227.0,40211.0,2.58296272]
[1610231891270,1.13632608,40227.0,40226.0,0.0002]
[1610231891471,1.13632608,40227.0,40212.0,2.58287524]
[1610231891669,1.13632608,40227.0,40226.0,0.0002]
[1610231892069,1.13632608,40227.0,40213.0,0.00782364]
[1610231892270,1.21660608,40227.0,40226.0,0.0002]
[1610231892470,1.21660608,40227.0,40214.0,0.0002]
[1610231892671,1.08028,40227.0,40221.0,3.5154]
[1610231893072,1.08028,40227.0,40222.0,0.0002]
[1610231893270,1.08028,40227.0,40226.0,4.0207]
[1610231893470,0.08028,40227.0,40226.0,3.55797]
[1610231893669,0.08028,40227.0,40226.0,3.55817]
[1610231894670,0.21660608,40227.0,40226.0,3.55817]
[1610231896773,0.21660608,40227.0,40226.0,3.69449608]
[1610231906788,0.08028,40227.0,40226.0,3.55817]
[1610231906987,1.0,40231.0,40226.0,3.55817]
[1610231907289,1.0,40231.0,40228.0,0.13632608]